bitfinex/quotes_SOLUSD_20250612
["timestamp","ask_amount","ask_price","bid_price","bid_amount"]
[1749702752909,13.71257777,160.08,160.07,5.58]
[1749702753220,39.71257777,160.08,160.07,5.58]
[1749702758393,13.71257777,160.08,160.07,5.58]
[1749702760030,26.0,160.11,160.07,5.58]
[1749702760317,13.71257777,160.08,160.07,5.58]
[1749702762313,26.0,160.11,160.07,5.58]
[1749702762511,13.71257777,160.09,160.07,5.58]
[1749702763201,13.71257777,160.08,160.07,5.58]
[1749702764312,13.71257777,160.09,160.07,5.58]
[1749702764930,26.0,160.11,160.07,5.58]
[1749702765130,13.71257777,160.1,160.07,5.58]
[1749702765330,13.71257777,160.09,160.07,5.58]
[1749702766210,26.0,160.12,160.07,5.58]
[1749702766416,13.71257777,160.09,160.07,5.58]
[1749702769933,13.71257777,160.08,160.07,5.58]
[1749702786745,13.71257777,160.09,160.07,5.58]
[1749702786950,13.71257777,160.11,160.07,5.58]
[1749702787139,149.1,160.16,160.09,13.71257777]
[1749702787446,13.71257777,160.12,160.08,13.71257777]
[1749702787620,13.71257777,160.11,160.07,31.26]
[1749702788033,26.0,160.13,160.07,31.26]
[1749702788345,13.71257777,160.11,160.07,31.26]
[1749702790052,149.1,160.16,160.08,13.71257777]
[1749702790355,13.71257777,160.15,160.1,13.71257777]
[1749702790534,13.71257777,160.14,160.1,25.68]
[1749702790728,13.71257777,160.14,160.1,39.39257777]
[1749702790922,13.71257777,160.14,160.1,25.68]
[1749702791139,13.71257777,160.13,160.1,25.68]
[1749702791326,4.65766029,160.16,160.1,25.68]
[1749702791526,13.71257777,160.13,160.1,25.68]
[1749702792543,13.71257777,160.12,160.1,25.68]
[1749702792737,13.71257777,160.12,160.07,24.22964886]
[1749702792738,13.71257777,160.11,160.07,5.58]
[1749702793043,13.71257777,160.1,160.08,25.66]
[1749702794050,26.28432314,160.15,160.08,25.66]
[1749702794256,13.71257777,160.1,160.08,25.66]
[1749702797031,13.71257777,160.09,160.07,5.58]
[1749702797254,13.71257777,160.08,160.07,5.58]
[1749702799272,27.6531,160.13,160.07,5.58]
[1749702799571,13.71257777,160.11,160.07,5.58]
[1749702799735,13.71257777,160.09,160.07,5.58]
[1749702799938,13.71257777,160.08,160.07,5.58]
[1749702800547,27.42515554,160.08,160.07,5.58]
[1749702800741,33.6720321,160.08,160.07,5.58]
[1749702801764,27.42515554,160.08,160.07,5.58]
[1749702803333,59.95635524,160.08,160.07,5.58]
[1749702803536,26.0,160.05,160.01,5.58]
[1749702803763,13.71257777,160.02,160.01,5.58]
[1749702807161,26.0,160.04,160.01,5.58]
[1749702807367,13.71257777,160.02,160.01,5.58]
[1749702811050,32.24812864,160.05,160.01,5.58]
[1749702811366,13.71257777,160.02,160.01,5.58]
[1749702814564,13.71257777,160.02,159.96,5.58]
[1749702814765,13.71257777,159.97,159.96,5.58]
[1749702815264,13.71257777,160.0,159.96,5.58]
[1749702815472,13.71257777,159.97,159.96,5.58]
[1749702816854,26.0,159.97,159.96,5.58]
[1749702817368,39.71257777,159.97,159.96,5.58]
[1749702820170,13.71257777,159.98,159.96,5.58]
[1749702822077,45.96277675,160.0,159.96,5.58]
[1749702822247,13.71257777,159.97,159.96,5.58]
[1749702823147,15.61900091,159.97,159.96,5.58]
[1749702823675,41.61900091,159.97,159.96,5.58]
[1749702824757,47.870173,159.97,159.96,5.58]
[1749702824959,48.01233457,159.97,159.96,5.58]
[1749702825268,26.0,159.94,159.9,5.56]
[1749702825469,13.71257777,159.91,159.9,5.56]
[1749702837306,13.99690091,159.91,159.9,5.56]
[1749702837504,20.25041851,159.91,159.9,5.56]
[1749702837693,20.25041851,159.91,159.83,25.68]
[1749702837694,46.25041851,159.91,159.83,5.56]
[1749702837899,13.71257777,159.85,159.83,5.56]
[1749702838199,32.53784074,159.91,159.83,5.56]
[1749702838200,13.71257777,159.84,159.83,5.56]
[1749702838882,27.42515554,159.84,159.77,7.7518]
[1749702839070,27.42515554,159.84,159.76,5.56]
[1749702839071,13.71257777,159.78,159.76,5.56]
[1749702839270,13.71257777,159.77,159.76,5.56]
[1749702839786,26.0,159.81,159.76,5.56]
[1749702839984,13.71257777,159.77,159.76,5.56]
[1749702841571,13.71257777,159.78,159.76,5.56]
[1749702842483,13.71257777,159.77,159.76,5.56]
[1749702843772,26.0,159.81,159.76,5.56]
[1749702843978,13.71257777,159.79,159.76,5.56]
[1749702844396,13.71257777,159.78,159.76,5.56]
[1749702844694,13.71257777,159.77,159.76,5.56]
[1749702845383,34.11063755,159.77,159.76,5.56]
[1749702845781,34.11063755,159.77,159.69,31.28]
[1749702845782,0.28432314,159.76,159.69,31.28]
[1749702846086,13.71257777,159.73,159.69,31.28]
[1749702849403,13.71257777,159.72,159.69,31.28]
[1749702850686,13.71257777,159.7,159.69,5.58]
[1749702859188,26.0,159.71,159.69,5.58]
[1749702859389,13.71257777,159.7,159.69,5.58]
[1749702864317,39.71257777,159.72,159.69,5.58]
[1749702864495,13.71257777,159.72,159.69,5.58]
[1749702864688,13.71257777,159.73,159.69,5.58]
[1749702865216,0.14216157,159.77,159.69,5.58]
[1749702865415,13.71257777,159.73,159.69,5.58]
[1749702868718,13.71257777,159.76,159.69,5.58]
[1749702868893,13.71257777,159.72,159.69,5.58]
[1749702869096,13.71257777,159.76,159.69,5.58]
[1749702869295,13.71257777,159.72,159.69,5.58]
[1749702870321,13.71257777,159.73,159.69,5.58]
[1749702871320,13.71257777,159.72,159.69,5.58]
[1749702872229,13.71257777,159.76,159.69,5.58]
[1749702872630,13.71257777,159.72,159.69,5.58]
[1749702875139,13.71257777,159.73,159.69,5.58]
[1749702875447,13.71257777,159.75,159.71,13.71257777]
[1749702875620,13.71257777,159.72,159.69,5.58]
[1749702875822,13.71257777,159.7,159.69,5.58]
[1749702878844,5.37924444,159.7,159.69,5.58]
[1749702879047,13.71257777,159.7,159.69,5.58]
[1749702879258,26.0,159.74,159.69,5.58]
[1749702879427,13.71257777,159.71,159.69,5.58]
[1749702880550,13.71257777,159.7,159.69,5.58]
[1749702880945,26.0,159.74,159.69,5.58]
[1749702881136,13.71257777,159.71,159.69,5.58]
[1749702881536,26.0,159.74,159.69,5.58]
[1749702881731,13.71257777,159.71,159.69,5.58]
[1749702881937,26.0,159.74,159.69,5.58]
[1749702881938,13.71257777,159.7,159.69,5.58]
[1749702883150,13.71257777,159.71,159.69,5.58]
[1749702883847,13.71257777,159.72,159.69,5.58]
[1749702884053,13.71257777,159.71,159.69,5.58]
[1749702886949,26.0,159.74,159.69,5.58]
[1749702887136,13.71257777,159.71,159.69,5.58]
[1749702889945,13.71257777,159.7,159.69,5.58]
[1749702890556,39.71257777,159.7,159.69,5.58]
[1749702892457,13.71257777,159.7,159.69,5.58]
[1749702897663,13.71257777,159.7,159.66,25.7]
[1749702897853,13.71257777,159.68,159.66,25.7]
[1749702898463,13.71257777,159.68,159.65,5.56]
[1749702898768,13.71257777,159.68,159.65,31.26]
[1749702900366,13.71257777,159.69,159.65,31.26]
[1749702901253,13.71257777,159.68,159.66,25.7]
[1749702902247,13.71257777,159.67,159.6,32.36222663]
[1749702902480,13.71257777,159.65,159.61,5.56]
[1749702902778,13.71257777,159.65,159.62,25.7]
[1749702902941,6.2618487,159.7,159.62,25.7]
[1749702903145,13.71257777,159.65,159.62,25.7]
[1749702905271,27.79332314,159.71,159.62,25.7]
[1749702905575,13.71257777,159.67,159.63,25.7]
[1749702906082,13.71257777,159.66,159.63,25.7]
[1749702907076,13.71257777,159.65,159.61,5.56]
[1749702907259,13.71257777,159.63,159.61,5.56]
[1749702907576,32.26291726,159.67,159.61,5.56]
[1749702907577,13.71257777,159.62,159.61,5.56]
[1749702910579,13.71257777,159.62,159.54,13.71257777]
[1749702910580,26.0,159.59,159.54,5.56]
[1749702910757,13.71257777,159.55,159.54,5.56]
[1749702913858,27.87922314,159.59,159.54,5.56]
[1749702914051,13.71257777,159.55,159.54,5.56]
[1749702916783,26.0,159.57,159.54,5.56]
[1749702917002,13.71257777,159.55,159.54,5.56]
[1749702917294,26.0,159.57,159.54,5.56]
[1749702917295,13.71257777,159.57,159.54,5.56]
[1749702917470,13.71257777,159.58,159.54,31.26]
[1749702917879,13.71257777,159.58,159.54,44.97257777]
[1749702918173,13.71257777,159.6,159.56,13.71257777]
[1749702918355,13.71257777,159.6,159.57,25.7]
[1749702918786,26.0,159.63,159.57,25.7]
[1749702918989,15.21457777,159.68,159.58,18.64964886]
[1749702919167,1.502,159.68,159.59,13.71257777]
[1749702919367,13.71257777,159.65,159.6,39.41257777]
[1749702919567,13.71257777,159.66,159.61,13.71257777]
[1749702919768,149.1,159.71,159.62,13.71257777]
[1749702919976,1.502,159.72,159.64,13.71257777]
[1749702919977,13.71257777,159.68,159.64,13.71257777]
[1749702920192,13.71257777,159.68,159.63,44.97257777]
[1749702920390,13.71257777,159.68,159.64,13.71257777]
[1749702921664,13.71257777,159.68,159.63,44.97257777]
[1749702924479,13.71257777,159.69,159.64,13.71257777]
[1749702924880,26.0,159.7,159.64,13.71257777]
[1749702925098,13.71257777,159.69,159.64,13.71257777]
[1749702925801,13.71257777,159.69,159.65,13.71257777]
[1749702926005,1.502,159.72,159.66,39.41257777]
[1749702926202,13.71257777,159.71,159.66,39.41257777]
[1749702926494,13.71257777,159.7,159.66,25.7]
[1749702926890,13.71257777,159.67,159.66,25.7]
[1749702927110,13.71257777,159.67,159.65,25.7]
[1749702927290,13.71257777,159.66,159.65,25.7]
[1749702927485,13.71257777,159.67,159.65,25.7]
[1749702929282,13.71257777,159.68,159.65,25.7]
[1749702929468,13.71257777,159.68,159.64,39.41257777]
[1749702929676,26.0,159.72,159.64,39.41257777]
[1749702930102,13.71257777,159.7,159.65,13.71257777]
[1749702930295,13.71257777,159.71,159.66,13.71257777]
[1749702930487,13.71257777,159.7,159.67,25.7]
[1749702932876,13.71257777,159.71,159.67,25.7]
[1749702933102,6.76262314,159.75,159.67,25.7]
[1749702933103,13.71257777,159.7,159.67,25.7]
[1749702933305,26.0,159.72,159.67,25.7]
[1749702933306,13.71257777,159.69,159.67,25.7]
[1749702934600,26.0,159.72,159.67,25.7]
[1749702934808,13.71257777,159.7,159.67,25.7]
[1749702936574,26.0,159.72,159.67,25.7]
[1749702936800,13.71257777,159.71,159.67,25.7]
[1749702936998,13.71257777,159.7,159.67,25.7]
[1749702938405,26.0,159.72,159.67,25.7]
[1749702938587,13.71257777,159.7,159.67,25.7]
[1749702938788,13.71257777,159.7,159.68,5.56]
[1749702939302,13.71257777,159.71,159.68,5.56]
[1749702939676,26.0,159.74,159.68,19.27257777]
[1749702939881,13.71257777,159.73,159.68,19.27257777]
[1749702940289,13.71257777,159.73,159.68,5.56]
[1749702940499,26.0,159.74,159.68,19.27257777]
[1749702940828,13.71257777,159.73,159.68,19.27257777]
[1749702942316,13.71257777,159.73,159.68,5.56]
[1749702942619,13.71257777,159.69,159.68,5.56]
[1749702943597,13.71257777,159.69,159.64,5.56]
[1749702943789,13.71257777,159.66,159.64,5.56]
[1749702946911,26.0,159.7,159.64,5.56]
[1749702947117,1.5593,159.76,159.69,13.71257777]
[1749702947320,13.71257777,159.74,159.69,39.39257777]
[1749702947903,13.71257777,159.73,159.69,25.68]
[1749702948686,27.5593,159.76,159.69,25.68]
[1749702948893,13.71257777,159.73,159.69,25.68]
[1749702949510,13.71257777,159.72,159.69,25.68]
[1749702949695,13.71257777,159.71,159.69,25.68]
[1749702950015,13.71257777,159.72,159.69,31.24]
[1749702950704,13.71257777,159.71,159.69,31.24]
[1749702954419,13.71257777,159.7,159.69,5.56]
[1749702955823,39.71257777,159.7,159.69,5.56]
[1749702956021,26.0,159.67,159.61,5.56]
[1749702956228,13.71257777,159.65,159.61,31.24]
[1749702956528,13.71257777,159.65,159.61,44.95257777]
[1749702957308,13.71257777,159.65,159.61,31.24]
[1749702958416,26.0,159.67,159.61,44.95257777]
[1749702958605,13.71257777,159.65,159.61,44.95257777]
[1749702958807,13.71257777,159.65,159.61,31.24]
[1749702959009,13.71257777,159.65,159.61,44.95257777]
[1749702961327,13.71257777,159.65,159.61,31.24]
[1749702961529,13.71257777,159.64,159.61,31.24]
[1749702962205,13.71257777,159.63,159.61,5.56]
[1749702962408,0.28432314,159.67,159.61,31.24]
[1749702962728,13.71257777,159.64,159.61,31.24]
[1749702963263,26.0,159.62,159.61,31.24]
[1749702963909,13.71257777,159.64,159.61,31.24]
[1749702964913,13.71257777,159.63,159.61,31.24]
[1749702966005,13.71257777,159.62,159.61,31.24]
[1749702966411,13.71257777,159.62,159.61,5.56]
[1749702968523,13.71257777,159.63,159.61,5.56]
[1749702969834,13.71257777,159.62,159.61,5.56]
[1749702974542,32.26383028,159.65,159.61,5.56]
[1749702974744,13.71257777,159.62,159.61,5.56]
[1749702975519,26.0,159.63,159.61,5.56]
[1749702975721,13.71257777,159.62,159.61,5.56]
[1749702977741,13.71257777,159.68,159.61,5.56]
[1749702977937,1.5581,159.7,159.61,19.27257777]
[1749702978270,13.71257777,159.65,159.61,19.27257777]
[1749702978544,13.71257777,159.66,159.61,19.27257777]
[1749702979738,26.0,159.68,159.61,19.27257777]
[1749702979922,13.71257777,159.65,159.61,19.27257777]
[1749702980845,13.71257777,159.64,159.61,5.56]
[1749702982255,13.71257777,159.65,159.61,19.27257777]
[1749702982548,13.71257777,159.66,159.61,19.27257777]
[1749702983129,13.71257777,159.67,159.62,13.71257777]
[1749702983330,13.71257777,159.67,159.63,25.68]
[1749702983851,13.71257777,159.67,159.63,39.39257777]
[1749702984039,27.5581,159.7,159.63,39.39257777]
[1749702984238,1.6183,159.74,159.66,13.71257777]
[1749702984444,13.71257777,159.71,159.67,39.39257777]
[1749702984630,13.71257777,159.72,159.68,13.71257777]
[1749702984825,13.71257777,159.72,159.67,25.68]
[1749702985033,13.71257777,159.72,159.68,13.71257777]
[1749702986434,13.71257777,159.72,159.67,39.39257777]
[1749702986652,26.0,159.75,159.67,39.39257777]
[1749702986653,13.71257777,159.71,159.67,25.68]
[1749702986851,13.71257777,159.7,159.67,25.68]
[1749702987432,39.71257777,159.7,159.67,25.68]
[1749702988955,39.71257777,159.68,159.64,13.71257777]
[1749702989147,39.71257777,159.68,159.65,31.24]
[1749702989352,13.71257777,159.67,159.65,5.56]
[1749702989533,13.71257777,159.67,159.66,25.68]
[1749702990948,39.71257777,159.68,159.66,25.68]
[1749702991355,13.71257777,159.67,159.66,25.68]
[1749702994668,13.71257777,159.67,159.65,31.24]
[1749702994845,13.71257777,159.66,159.65,31.24]
[1749702995261,13.71257777,159.66,159.65,5.56]
[1749702998867,19.9758873,159.66,159.65,5.56]
[1749702999369,19.9758873,159.66,159.57,13.71257777]
[1749702999370,21.4834873,159.66,159.59,5.54]
[1749702999569,13.71257777,159.61,159.59,31.22]
[1749703001764,13.71257777,159.6,159.59,5.54]
[1749703009176,33.6908197,159.6,159.59,5.54]
[1749703009380,33.97514284,159.6,159.59,5.54]
[1749703010559,27.70947868,159.6,159.59,5.54]
[1749703010756,26.0,159.57,159.52,5.56]
[1749703010958,13.71257777,159.53,159.52,5.56]
[1749703011964,13.71257777,159.53,159.46,21.83457777]
[1749703012162,26.28432314,159.57,159.47,31.24]
[1749703012163,13.71257777,159.51,159.47,31.24]
[1749703012359,13.71257777,159.5,159.47,5.56]
[1749703012559,13.71257777,159.49,159.48,25.68]
[1749703012984,13.71257777,159.49,159.47,31.24]
[1749703014189,13.71257777,159.5,159.47,31.24]
[1749703017890,13.71257777,159.48,159.47,5.56]
[1749703022287,20.26727964,159.48,159.47,5.56]
[1749703022493,39.99690091,159.48,159.47,5.56]
[1749703025378,39.71257777,159.48,159.47,5.56]
[1749703026489,20.14447777,159.52,159.47,5.56]
[1749703026692,150.7601,159.53,159.47,5.56]
[1749703026888,13.71257777,159.52,159.47,44.97257777]
[1749703028092,13.71257777,159.51,159.47,31.26]
[1749703030291,13.71257777,159.51,159.47,44.97257777]
[1749703031377,13.71257777,159.5,159.47,31.26]
[1749703031573,13.71257777,159.5,159.46,13.71257777]
[1749703031574,13.71257777,159.48,159.46,5.56]
[1749703031886,26.0,159.51,159.46,5.56]
[1749703031887,13.71257777,159.47,159.46,5.56]
[1749703032401,13.71257777,159.49,159.46,5.56]
[1749703032878,13.71257777,159.48,159.46,5.56]
[1749703033082,26.0,159.49,159.46,5.56]
[1749703033281,13.71257777,159.48,159.46,5.56]
[1749703033983,26.0,159.49,159.46,5.56]
[1749703034299,13.71257777,159.47,159.46,5.56]
[1749703035292,13.71257777,159.48,159.46,5.56]
[1749703035488,39.71257777,159.49,159.46,5.56]
[1749703035802,13.71257777,159.5,159.46,5.56]
[1749703036305,13.71257777,159.49,159.46,5.56]
[1749703040486,26.0,159.54,159.48,13.71257777]
[1749703040693,39.71257777,159.54,159.5,13.71257777]
[1749703040897,39.71257777,159.54,159.49,39.41257777]
[1749703041107,13.71257777,159.53,159.49,25.7]
[1749703041601,13.71257777,159.52,159.49,25.7]
[1749703041780,13.71257777,159.5,159.49,25.7]
[1749703044108,26.0,159.54,159.47,13.71257777]
[1749703044283,26.0,159.54,159.48,13.71257777]
[1749703044284,13.71257777,159.53,159.48,13.71257777]
[1749703044708,13.71257777,159.52,159.48,13.71257777]
[1749703045004,13.71257777,159.52,159.47,13.71257777]
[1749703047384,13.71257777,159.52,159.46,31.26]
[1749703047596,13.71257777,159.49,159.46,5.56]
[1749703047829,13.71257777,159.49,159.47,25.7]
[1749703047991,13.71257777,159.48,159.46,5.56]
[1749703048682,13.71257777,159.47,159.46,5.56]
[1749703049282,13.71257777,159.48,159.46,5.56]
[1749703049720,13.71257777,159.47,159.46,5.56]
[1749703050428,26.28432314,159.49,159.46,5.56]
[1749703050606,13.71257777,159.47,159.46,5.56]
[1749703054133,19.9833497,159.47,159.46,5.56]
[1749703054442,13.71257777,159.47,159.46,5.56]
[1749703055936,45.9833497,159.47,159.46,5.56]
[1749703056527,39.71257777,159.47,159.46,5.56]
[1749703057545,45.9833497,159.47,159.46,5.56]
[1749703057839,0.28432314,159.49,159.46,5.56]
[1749703057840,13.71257777,159.49,159.46,5.56]
[1749703058409,13.71257777,159.48,159.46,5.56]
[1749703059019,26.0,159.49,159.46,5.56]
[1749703059428,13.71257777,159.48,159.46,5.56]
[1749703061243,13.71257777,159.47,159.46,5.56]
[1749703061424,13.71257777,159.47,159.41,5.56]
[1749703061626,0.28432314,159.48,159.41,5.56]
[1749703062026,13.71257777,159.44,159.41,5.56]
[1749703062232,0.28432314,159.48,159.41,5.56]
[1749703062432,13.71257777,159.45,159.41,19.27257777]
[1749703062949,0.14216157,159.51,159.41,19.27257777]
[1749703062950,13.71257777,159.46,159.42,13.71257777]
[1749703063117,13.71257777,159.46,159.41,5.56]
[1749703063544,13.71257777,159.46,159.42,13.71257777]
[1749703063714,13.71257777,159.46,159.41,5.56]
[1749703063920,13.71257777,159.46,159.42,13.71257777]
[1749703064959,13.71257777,159.45,159.41,5.56]
[1749703065317,13.71257777,159.45,159.42,25.7]
[1749703068147,26.0,159.47,159.42,25.7]
[1749703068522,13.71257777,159.46,159.42,25.7]
[1749703070437,13.71257777,159.45,159.42,25.7]
[1749703072169,26.0,159.48,159.41,31.26]
[1749703072357,13.71257777,159.46,159.42,13.71257777]
[1749703072558,13.71257777,159.46,159.41,31.26]
[1749703072737,13.71257777,159.45,159.41,44.97257777]
[1749703073033,13.71257777,159.46,159.41,44.97257777]
[1749703073233,26.0,159.48,159.41,31.26]
[1749703073234,13.71257777,159.44,159.41,31.26]
[1749703073451,26.0,159.48,159.41,5.56]
[1749703073663,13.71257777,159.44,159.41,5.56]
[1749703074275,13.71257777,159.45,159.41,5.56]
[1749703074859,13.71257777,159.44,159.41,31.38]
[1749703075895,32.55481059,159.48,159.41,31.38]
[1749703075896,13.71257777,159.43,159.41,31.38]
[1749703077168,13.71257777,159.44,159.41,31.38]
[1749703077343,13.71257777,159.44,159.39,21.82057777]
[1749703077544,13.71257777,159.44,159.4,5.56]
[1749703078465,32.27091332,159.47,159.4,5.56]
[1749703078653,13.71257777,159.44,159.4,5.56]
[1749703079549,26.0,159.47,159.4,5.56]
[1749703079550,13.71257777,159.43,159.4,5.56]
[1749703079752,13.71257777,159.44,159.4,19.27257777]
[1749703080444,13.71257777,159.44,159.4,5.56]
[1749703081276,13.71257777,159.45,159.4,19.27257777]
[1749703081444,26.0,159.47,159.42,13.71257777]
[1749703081644,39.71257777,159.47,159.42,39.51257777]
[1749703081954,13.71257777,159.46,159.42,25.8]
[1749703082538,13.71257777,159.46,159.42,39.51257777]
[1749703082773,39.71257777,159.47,159.42,39.51257777]
[1749703083083,39.71257777,159.47,159.43,13.71257777]
[1749703083084,26.0,159.47,159.43,13.71257777]
[1749703084271,13.71257777,159.49,159.44,13.71257777]
[1749703084483,13.71257777,159.45,159.4,5.56]
[1749703084683,0.28432314,159.48,159.41,25.82]
[1749703084859,13.71257777,159.44,159.41,25.82]
[1749703085046,13.71257777,159.42,159.4,5.56]
[1749703085246,13.71257777,159.41,159.4,5.56]
[1749703085442,26.0,159.44,159.4,5.56]
[1749703085746,13.71257777,159.42,159.4,5.56]
[1749703087561,13.71257777,159.41,159.4,5.56]
[1749703088267,13.71257777,159.41,159.36,5.56]
[1749703088480,13.71257777,159.38,159.36,31.4]
[1749703088881,13.71257777,159.38,159.36,5.56]
[1749703089184,13.71257777,159.39,159.36,5.56]
[1749703090386,13.71257777,159.4,159.36,5.56]
[1749703090593,0.14216157,159.47,159.37,13.71257777]
[1749703090906,0.14216157,159.47,159.36,5.56]
[1749703090907,13.71257777,159.42,159.38,39.57257777]
[1749703091085,13.71257777,159.43,159.38,39.57257777]
[1749703091394,39.71257777,159.44,159.38,25.86]
[1749703091675,39.71257777,159.44,159.39,13.71257777]
[1749703092079,13.71257777,159.43,159.38,39.57257777]
[1749703093070,13.71257777,159.42,159.38,39.57257777]
[1749703094157,26.0,159.44,159.38,39.57257777]
[1749703094376,13.71257777,159.42,159.38,39.57257777]
[1749703094581,13.71257777,159.43,159.38,39.57257777]
[1749703094803,13.71257777,159.45,159.38,25.86]
[1749703095004,13.71257777,159.45,159.39,18.64964886]
[1749703095178,13.71257777,159.43,159.38,39.57257777]
[1749703095371,26.0,159.46,159.38,39.57257777]
[1749703095372,26.0,159.45,159.38,39.57257777]
[1749703095577,13.71257777,159.43,159.38,39.57257777]
[1749703095792,26.0,159.45,159.38,39.57257777]
[1749703095996,13.71257777,159.43,159.38,39.57257777]
[1749703096296,13.71257777,159.42,159.38,25.86]
[1749703096476,13.71257777,159.43,159.38,39.57257777]
[1749703096897,13.71257777,159.43,159.39,5.64]
[1749703097290,13.71257777,159.43,159.4,5.64]
[1749703098879,32.27120068,159.46,159.4,5.64]
[1749703099099,13.71257777,159.43,159.4,5.64]
[1749703099701,13.71257777,159.42,159.4,5.64]
[1749703100402,32.27120068,159.46,159.4,5.64]
[1749703100583,13.71257777,159.42,159.4,5.64]
[1749703100914,13.71257777,159.41,159.4,5.64]
[1749703107894,26.0,159.41,159.4,5.64]
[1749703108102,39.71257777,159.41,159.4,5.64]
[1749703110522,26.0,159.41,159.4,5.64]
[1749703110821,39.71257777,159.41,159.4,5.64]
[1749703111011,26.0,159.41,159.4,5.64]
[1749703111209,39.71257777,159.41,159.4,5.64]
[1749703112297,26.0,159.41,159.4,5.64]
[1749703112515,39.71257777,159.41,159.4,5.64]
[1749703113209,6.27180736,159.45,159.4,5.64]
[1749703113394,39.71257777,159.41,159.4,5.64]
[1749703114100,0.14216157,159.45,159.4,5.64]
[1749703114412,13.71257777,159.43,159.4,5.64]
[1749703114615,13.71257777,159.42,159.4,5.64]
[1749703114821,13.71257777,159.41,159.4,5.64]
[1749703119800,26.0,159.41,159.4,5.64]
[1749703120123,39.71257777,159.41,159.4,5.64]
[1749703121840,13.71257777,159.42,159.4,5.64]
[1749703122123,13.71257777,159.41,159.4,5.64]
[1749703123227,2.33606643,159.43,159.4,5.64]
[1749703123422,13.71257777,159.41,159.4,5.64]
[1749703125511,26.0,159.44,159.4,5.64]
[1749703125825,13.71257777,159.44,159.4,19.35257777]
[1749703126026,13.71257777,159.46,159.41,13.71257777]
[1749703126405,13.71257777,159.46,159.41,39.51257777]
[1749703128534,39.71257777,159.46,159.41,39.51257777]
[1749703129124,13.71257777,159.45,159.41,39.51257777]
[1749703129618,39.71257777,159.46,159.42,13.71257777]
[1749703130234,175.1,159.49,159.42,13.71257777]
[1749703130431,13.71257777,159.46,159.41,25.8]
[1749703130615,13.71257777,159.46,159.42,13.71257777]
[1749703131229,13.71257777,159.47,159.42,13.71257777]
[1749703133123,13.71257777,159.46,159.42,13.71257777]
[1749703133317,181.37000293,159.49,159.4,5.64]
[1749703133318,13.71257777,159.44,159.4,5.64]
[1749703133523,13.71257777,159.44,159.4,31.44]
[1749703133839,13.71257777,159.45,159.4,45.15257777]
[1749703134134,13.71257777,159.45,159.41,13.71257777]
[1749703134343,13.71257777,159.45,159.4,31.44]
[1749703134530,13.71257777,159.45,159.4,45.15257777]
[1749703134716,175.1,159.49,159.41,13.71257777]
[1749703134914,13.71257777,159.47,159.41,25.8]
[1749703135111,13.71257777,159.47,159.42,13.71257777]
[1749703136618,13.71257777,159.48,159.43,13.71257777]
[1749703136818,13.71257777,159.47,159.41,25.8]
[1749703137038,13.71257777,159.47,159.43,13.71257777]
[1749703137246,13.71257777,159.46,159.42,13.71257777]
[1749703140139,26.0,159.49,159.42,13.71257777]
[1749703140351,13.71257777,159.46,159.42,13.71257777]
[1749703142332,13.71257777,159.46,159.4,5.64]
[1749703142534,13.71257777,159.46,159.42,13.71257777]
[1749703145026,13.71257777,159.45,159.41,39.51257777]
[1749703145223,26.0,159.46,159.4,5.64]
[1749703145527,13.71257777,159.42,159.4,5.64]
[1749703146040,13.71257777,159.43,159.4,5.64]
[1749703147251,13.71257777,159.41,159.4,5.64]
[1749703147952,6.55588162,159.45,159.4,5.64]
[1749703147953,0.28432314,159.45,159.4,5.64]
[1749703148141,2.33736402,159.44,159.41,13.71257777]
[1749703148459,13.71257777,159.46,159.42,13.71257777]